[Event "Titled Tuesday Blitz March 21 Late 2023"]
[White "Sarana, Alexey"]
[Black "Ehlvest, Jaan"]
[WhiteFideId "24133795"]
[BlackFideId "4500016"]
[WhiteElo "2714"]
[BlackElo "2442"]
[Result "0-1"]
[Round "01"]
[TimeControl "180+2"]
[Date "2023.03.21"]
[WhiteClock "0:00:01"]
[BlackClock "0:00:25"]

1. d4 {[%clk 0:02:28]}  Nf6 {[%clk 0:02:57]} 2. c4 {[%clk 0:02:28]}  e6 {[%clk 0:02:56]} 3. Nc3 {[%clk 0:02:29]}  Bb4 {[%clk 0:02:55]} 4. e3 {[%clk 0:02:30]}  b6 {[%clk 0:02:52]} 5. Ne2 {[%clk 0:02:29]}  Bb7 {[%clk 0:02:51]} 6. a3 {[%clk 0:02:29]}  Be7 {[%clk 0:02:49]} 7. d5 {[%clk 0:02:30]}  O-O {[%clk 0:02:45]} 8. Ng3 {[%clk 0:02:30]}  Re8 {[%clk 0:02:41]} 9. Be2 {[%clk 0:02:29]}  d6 {[%clk 0:02:40]} 10. e4 {[%clk 0:02:28]}  Nbd7 {[%clk 0:02:40]} 11. O-O {[%clk 0:02:25]}  Bf8 {[%clk 0:02:39]} 12. f4 {[%clk 0:02:23]}  c6 {[%clk 0:02:39]} 13. dxe6 {[%clk 0:02:16]}  Rxe6 {[%clk 0:02:38]} 14. Bf3 {[%clk 0:02:11]}  Re8 {[%clk 0:02:36]} 15. Nf5 {[%clk 0:02:09]}  Nc5 {[%clk 0:02:35]} 16. Re1 {[%clk 0:02:03]}  g6 {[%clk 0:02:34]} 17. Ng3 {[%clk 0:01:58]}  Bg7 {[%clk 0:02:34]} 18. Be3 {[%clk 0:01:57]}  a5 {[%clk 0:02:29]} 19. Qc2 {[%clk 0:01:58]}  a4 {[%clk 0:02:27]} 20. Rad1 {[%clk 0:01:57]}  Qc7 {[%clk 0:02:26]} 21. Bd4 {[%clk 0:01:47]}  Ba6 {[%clk 0:02:25]} 22. Nxa4 {[%clk 0:01:46]}  Nxa4 {[%clk 0:02:19]} 23. Qxa4 {[%clk 0:01:47]}  c5 {[%clk 0:02:15]} 24. Bc3 {[%clk 0:01:25]}  Bb7 {[%clk 0:02:11]} 25. Qc2 {[%clk 0:01:25]}  h5 {[%clk 0:02:11]} 26. h4 {[%clk 0:01:20]}  Rad8 {[%clk 0:02:02]} 27. Qf2 {[%clk 0:01:03]}  Bc8 {[%clk 0:01:53]} 28. f5 {[%clk 0:01:00]}  Bb7 {[%clk 0:01:46]} 29. Rd3 {[%clk 0:00:53]}  Qe7 {[%clk 0:01:43]} 30. b3 {[%clk 0:00:51]}  Nd7 {[%clk 0:01:43]} 31. Bxg7 {[%clk 0:00:44]}  Kxg7 {[%clk 0:01:44]} 32. Bxh5 {[%clk 0:00:43]}  Rh8 {[%clk 0:01:37]} 33. fxg6 {[%clk 0:00:39]}  fxg6 {[%clk 0:01:36]} 34. Bxg6 {[%clk 0:00:38]}  Kxg6 {[%clk 0:01:33]} 35. Nf5 {[%clk 0:00:39]}  Qe5 {[%clk 0:01:29]} 36. Rxd6+ {[%clk 0:00:39]}  Nf6 {[%clk 0:01:26]} 37. Rxb6 {[%clk 0:00:31]}  Bxe4 {[%clk 0:01:20]} 38. Ng3 {[%clk 0:00:31]}  Rxh4 {[%clk 0:01:15]} 39. Rxf6+ {[%clk 0:00:15]}  Qxf6 {[%clk 0:01:13]} 40. Qxf6+ {[%clk 0:00:16]}  Kxf6 {[%clk 0:01:12]} 41. Nxe4+ {[%clk 0:00:16]}  Kg6 {[%clk 0:01:03]} 42. Nxc5 {[%clk 0:00:16]}  Rd2 {[%clk 0:01:00]} 43. Re6+ {[%clk 0:00:13]}  Kf7 {[%clk 0:00:58]} 44. Re3 {[%clk 0:00:12]}  Rg4 {[%clk 0:00:50]} 45. Rf3+ {[%clk 0:00:12]}  Ke7 {[%clk 0:00:50]} 46. Rf2 {[%clk 0:00:13]}  Rgd4 {[%clk 0:00:48]} 47. Rxd2 {[%clk 0:00:08]}  Rxd2 {[%clk 0:00:47]} 48. a4 {[%clk 0:00:09]}  Rb2 {[%clk 0:00:46]} 49. a5 {[%clk 0:00:05]}  Kd6 {[%clk 0:00:46]} 50. Ne4+ {[%clk 0:00:05]}  Ke5 {[%clk 0:00:44]} 51. Nc5 {[%clk 0:00:03]}  Kd6 {[%clk 0:00:44]} 52. Nb7+ {[%clk 0:00:02]}  Kc7 {[%clk 0:00:44]} 53. a6 {[%clk 0:00:01]}  Rxb3 {[%clk 0:00:42]} 54. Kf2 {[%clk 0:00:01]}  Ra3 {[%clk 0:00:41]} 55. Nc5 {[%clk 0:00:02]}  Kc6 {[%clk 0:00:40]} 56. Ne4 {[%clk 0:00:02]}  Rxa6 {[%clk 0:00:40]} 57. Ke3 {[%clk 0:00:02]}  Ra1 {[%clk 0:00:36]} 58. g4 {[%clk 0:00:02]}  Rg1 {[%clk 0:00:34]} 59. g5 {[%clk 0:00:02]}  Kd7 {[%clk 0:00:35]} 60. Kd4 {[%clk 0:00:03]}  Ke6 {[%clk 0:00:35]} 61. c5 {[%clk 0:00:03]}  Rd1+ {[%clk 0:00:32]} 62. Kc4 {[%clk 0:00:02]}  Kf5 {[%clk 0:00:30]} 63. Nc3 {[%clk 0:00:02]}  Rd8 {[%clk 0:00:29]} 64. Nd5 {[%clk 0:00:01]}  Kxg5 {[%clk 0:00:27]} 65. Ne7 {[%clk 0:00:01]}  Rd1 {[%clk 0:00:25]} 0-1


[Site "https://www.chess.com"]

[Event "Titled Tuesday Blitz March 21 Late 2023"]
[White "Papayan, Oleg"]
[Black "Van Foreest, Jorden"]
[WhiteFideId "4193911"]
[BlackFideId "1039784"]
[WhiteElo "2153"]
[BlackElo "2633"]
[Result "0-1"]
[Round "01"]
[TimeControl "180+2"]
[Date "2023.03.21"]
[WhiteClock "0:00:04"]
[BlackClock "0:01:31"]

1. e4 {[%clk 0:03:00]}  e5 {[%clk 0:02:59]} 2. Nf3 {[%clk 0:02:59]}  Nc6 {[%clk 0:03:00]} 3. Bb5 {[%clk 0:02:59]}  a6 {[%clk 0:03:00]} 4. Bxc6 {[%clk 0:02:59]}  dxc6 {[%clk 0:03:00]} 5. O-O {[%clk 0:03:00]}  Qe7 {[%clk 0:02:57]} 6. d4 {[%clk 0:02:51]}  exd4 {[%clk 0:02:57]} 7. Qxd4 {[%clk 0:02:37]}  Bg4 {[%clk 0:02:56]} 8. Bg5 {[%clk 0:02:18]}  f6 {[%clk 0:02:50]} 9. Bf4 {[%clk 0:02:17]}  Bxf3 {[%clk 0:02:38]} 10. gxf3 {[%clk 0:02:17]}  Qd7 {[%clk 0:02:26]} 11. Qe3 {[%clk 0:01:49]}  Bd6 {[%clk 0:02:13]} 12. Nc3 {[%clk 0:01:38]}  Ne7 {[%clk 0:02:11]} 13. Rad1 {[%clk 0:01:16]}  O-O {[%clk 0:02:11]} 14. Rd3 {[%clk 0:01:03]}  Ng6 {[%clk 0:02:07]} 15. Bg3 {[%clk 0:00:35]}  f5 {[%clk 0:01:59]} 16. exf5 {[%clk 0:00:23]}  Qxf5 {[%clk 0:02:00]} 17. Rfd1 {[%clk 0:00:17]}  Rae8 {[%clk 0:01:52]} 18. Ne4 {[%clk 0:00:17]}  Bxg3 {[%clk 0:01:51]} 19. hxg3 {[%clk 0:00:18]}  Ne5 {[%clk 0:01:51]} 20. Rc3 {[%clk 0:00:13]}  Nxf3+ {[%clk 0:01:50]} 21. Kg2 {[%clk 0:00:12]}  Nh4+ {[%clk 0:01:42]} 22. gxh4 {[%clk 0:00:13]}  Rxe4 {[%clk 0:01:42]} 23. Qc5 {[%clk 0:00:11]}  Qg4+ {[%clk 0:01:39]} 24. Rg3 {[%clk 0:00:08]}  Qxd1 {[%clk 0:01:38]} 25. Rxg7+ {[%clk 0:00:07]}  Kxg7 {[%clk 0:01:36]} 26. Qg5+ {[%clk 0:00:08]}  Kh8 {[%clk 0:01:36]} 27. Qh5 {[%clk 0:00:04]}  Qxh5 {[%clk 0:01:31]} 0-1


[Site "https://www.chess.com"]

[Event "Titled Tuesday Blitz March 21 Late 2023"]
[White "Kretchetov, Alexandre"]
[Black "Bok, Benjamin"]
[WhiteFideId "4124588"]
[BlackFideId "1017063"]
[WhiteElo "2515"]
[BlackElo "2658"]
[Result "0-1"]
[Round "01"]
[TimeControl "180+2"]
[Date "2023.03.21"]
[WhiteClock "0:00:47"]
[BlackClock "0:00:31"]

1. d4 {[%clk 0:02:58]}  Nf6 {[%clk 0:02:59]} 2. c4 {[%clk 0:02:58]}  e6 {[%clk 0:03:00]} 3. Nc3 {[%clk 0:02:56]}  Bb4 {[%clk 0:02:59]} 4. Qc2 {[%clk 0:02:56]}  d5 {[%clk 0:02:59]} 5. cxd5 {[%clk 0:02:55]}  exd5 {[%clk 0:03:00]} 6. Bg5 {[%clk 0:02:54]}  h6 {[%clk 0:02:59]} 7. Bh4 {[%clk 0:02:54]}  Nc6 {[%clk 0:03:00]} 8. e3 {[%clk 0:02:52]}  g5 {[%clk 0:03:00]} 9. Bg3 {[%clk 0:02:52]}  h5 {[%clk 0:03:01]} 10. Bb5 {[%clk 0:02:49]}  h4 {[%clk 0:03:01]} 11. Be5 {[%clk 0:02:47]}  O-O {[%clk 0:03:01]} 12. Bxc6 {[%clk 0:02:43]}  bxc6 {[%clk 0:03:02]} 13. a3 {[%clk 0:02:39]}  Bxc3+ {[%clk 0:02:58]} 14. bxc3 {[%clk 0:02:35]}  Ng4 {[%clk 0:01:56]} 15. Nf3 {[%clk 0:02:28]}  Qe7 {[%clk 0:01:44]} 16. h3 {[%clk 0:02:23]}  Nh6 {[%clk 0:01:40]} 17. O-O {[%clk 0:02:08]}  Bf5 {[%clk 0:01:16]} 18. Qa4 {[%clk 0:01:54]}  f6 {[%clk 0:01:16]} 19. Bh2 {[%clk 0:01:52]}  Qd7 {[%clk 0:01:12]} 20. Kh1 {[%clk 0:01:45]}  Rfb8 {[%clk 0:01:10]} 21. c4 {[%clk 0:01:41]}  Bd3 {[%clk 0:01:06]} 22. Rfc1 {[%clk 0:01:25]}  dxc4 {[%clk 0:00:56]} 23. Nd2 {[%clk 0:01:18]}  Rb2 {[%clk 0:00:54]} 24. Nxc4 {[%clk 0:01:14]}  Rxf2 {[%clk 0:00:52]} 25. Rg1 {[%clk 0:01:09]}  Be4 {[%clk 0:00:38]} 26. Raf1 {[%clk 0:01:08]}  Rxf1 {[%clk 0:00:35]} 27. Rxf1 {[%clk 0:01:07]}  Qxh3 {[%clk 0:00:35]} 28. Qc2 {[%clk 0:00:47]}  Ng4 {[%clk 0:00:31]} 0-1


[Site "https://www.chess.com"]

[Event "Titled Tuesday Blitz March 21 Late 2023"]
[White "Maghsoodloo, Parham"]
[Black "Roberson, Peter T"]
[WhiteFideId "12539929"]
[BlackFideId "412384"]
[WhiteElo "2647"]
[BlackElo "2346"]
[Result "1-0"]
[Round "01"]
[TimeControl "180+2"]
[Date "2023.03.21"]
[WhiteClock "0:00:20"]
[BlackClock "0:00:08"]

1. d4 {[%clk 0:02:58]}  e6 {[%clk 0:02:58]} 2. c4 {[%clk 0:02:57]}  b6 {[%clk 0:02:59]} 3. f3 {[%clk 0:02:48]}  Bb7 {[%clk 0:02:55]} 4. e4 {[%clk 0:02:45]}  f5 {[%clk 0:02:55]} 5. exf5 {[%clk 0:02:42]}  Nh6 {[%clk 0:02:55]} 6. Bxh6 {[%clk 0:02:36]}  Qh4+ {[%clk 0:02:55]} 7. g3 {[%clk 0:02:33]}  Qxh6 {[%clk 0:02:56]} 8. fxe6 {[%clk 0:02:23]}  Bd6 {[%clk 0:02:39]} 9. exd7+ {[%clk 0:02:20]}  Nxd7 {[%clk 0:02:38]} 10. Qe2+ {[%clk 0:02:18]}  Kf7 {[%clk 0:02:23]} 11. Kf2 {[%clk 0:01:51]}  Nf6 {[%clk 0:01:42]} 12. Bh3 {[%clk 0:01:31]}  Rhe8 {[%clk 0:01:34]} 13. Qd2 {[%clk 0:01:30]}  Qh5 {[%clk 0:01:20]} 14. Nc3 {[%clk 0:01:29]}  Re7 {[%clk 0:01:10]} 15. Re1 {[%clk 0:01:25]}  Rae8 {[%clk 0:01:08]} 16. Rxe7+ {[%clk 0:01:25]}  Rxe7 {[%clk 0:01:09]} 17. Nb5 {[%clk 0:01:15]}  g5 {[%clk 0:00:57]} 18. Bf5 {[%clk 0:01:08]}  g4 {[%clk 0:00:53]} 19. Nxd6+ {[%clk 0:01:09]}  cxd6 {[%clk 0:00:53]} 20. Qf4 {[%clk 0:01:09]}  gxf3 {[%clk 0:00:15]} 21. Nxf3 {[%clk 0:01:08]}  Bxf3 {[%clk 0:00:13]} 22. Qxf3 {[%clk 0:01:09]}  Qg5 {[%clk 0:00:14]} 23. Qf4 {[%clk 0:01:06]}  Qh5 {[%clk 0:00:10]} 24. Qf3 {[%clk 0:00:42]}  Qg5 {[%clk 0:00:10]} 25. Rd1 {[%clk 0:00:33]}  h5 {[%clk 0:00:11]} 26. h4 {[%clk 0:00:32]}  Qh6 {[%clk 0:00:11]} 27. d5 {[%clk 0:00:25]}  Kg7 {[%clk 0:00:11]} 28. Be6 {[%clk 0:00:26]}  Ng4+ {[%clk 0:00:10]} 29. Bxg4 {[%clk 0:00:25]}  hxg4 {[%clk 0:00:11]} 30. Qxg4+ {[%clk 0:00:25]}  Kh8 {[%clk 0:00:09]} 31. Kg2 {[%clk 0:00:23]}  Qe3 {[%clk 0:00:07]} 32. Rf1 {[%clk 0:00:20]}  Rg7 {[%clk 0:00:07]} 33. Rf8+ {[%clk 0:00:20]}  Kh7 {[%clk 0:00:07]} 34. Qh5+ {[%clk 0:00:19]}  Qh6 {[%clk 0:00:08]} 35. Rh8+ {[%clk 0:00:20]} 1-0


[Site "https://www.chess.com"]

[Event "Titled Tuesday Blitz March 21 Late 2023"]
[White "Makarian, Rudik"]
[Black "Vaglio Munoz, Jaime"]
[WhiteFideId "44105681"]
[BlackFideId "6500145"]
[WhiteElo "2436"]
[BlackElo "2199"]
[Result "1-0"]
[Round "01"]
[TimeControl "180+2"]
[Date "2023.03.21"]
[WhiteClock "0:01:34"]
[BlackClock "0:01:23"]

1. d4 {[%clk 0:02:59]}  c6 {[%clk 0:02:59]} 2. c4 {[%clk 0:02:58]}  b5 {[%clk 0:02:59]} 3. cxb5 {[%clk 0:02:57]}  cxb5 {[%clk 0:03:00]} 4. e4 {[%clk 0:02:43]}  Bb7 {[%clk 0:02:59]} 5. d5 {[%clk 0:02:31]}  Nf6 {[%clk 0:02:57]} 6. Nf3 {[%clk 0:02:25]}  Nxe4 {[%clk 0:02:53]} 7. Bd3 {[%clk 0:02:26]}  Qa5+ {[%clk 0:02:52]} 8. Nbd2 {[%clk 0:02:23]}  Bxd5 {[%clk 0:02:50]} 9. O-O {[%clk 0:02:23]}  Nxd2 {[%clk 0:02:48]} 10. Bxd2 {[%clk 0:02:23]}  Qb6 {[%clk 0:02:36]} 11. Ne5 {[%clk 0:02:09]}  Qb7 {[%clk 0:02:14]} 12. Qg4 {[%clk 0:01:54]}  Nc6 {[%clk 0:02:00]} 13. Rfe1 {[%clk 0:01:48]}  g6 {[%clk 0:01:49]} 14. Bc3 {[%clk 0:01:43]}  b4 {[%clk 0:01:36]} 15. Nxf7 {[%clk 0:01:34]}  bxc3 {[%clk 0:01:31]} 16. Nd6+ {[%clk 0:01:33]}  Kd8 {[%clk 0:01:30]} 17. Nxb7+ {[%clk 0:01:34]}  Kc7 {[%clk 0:01:29]} 18. Nc5 {[%clk 0:01:34]}  cxb2 {[%clk 0:01:28]} 19. Qxd7+ {[%clk 0:01:33]}  Kb6 {[%clk 0:01:28]} 20. Na4+ {[%clk 0:01:32]}  Ka5 {[%clk 0:01:24]} 21. Qxd5+ {[%clk 0:01:32]}  Kxa4 {[%clk 0:01:23]} 22. Qb5+ {[%clk 0:01:33]}  Ka3 {[%clk 0:01:23]} 23. Qb3# {[%clk 0:01:34]} 1-0


[Site "https://www.chess.com"]

[Event "Titled Tuesday Blitz March 21 Late 2023"]
[White "Narayanan.S.L"]
[Black "Quinones Garcia, Santiago"]
[WhiteFideId "5058422"]
[BlackFideId "4408497"]
[WhiteElo "2547"]
[BlackElo "2263"]
[Result "1/2-1/2"]
[Round "01"]
[TimeControl "180+2"]
[Date "2023.03.21"]
[WhiteClock "0:01:44"]
[BlackClock "0:00:03"]

1. e4 {[%clk 0:02:59]}  e6 {[%clk 0:02:57]} 2. d4 {[%clk 0:02:58]}  d5 {[%clk 0:02:58]} 3. Nc3 {[%clk 0:02:59]}  Bb4 {[%clk 0:02:58]} 4. Ne2 {[%clk 0:02:58]}  dxe4 {[%clk 0:02:54]} 5. a3 {[%clk 0:02:58]}  Bxc3+ {[%clk 0:02:54]} 6. Nxc3 {[%clk 0:02:58]}  c5 {[%clk 0:02:52]} 7. d5 {[%clk 0:02:58]}  Nf6 {[%clk 0:02:46]} 8. Bb5+ {[%clk 0:02:55]}  Kf8 {[%clk 0:02:31]} 9. Bg5 {[%clk 0:02:51]}  h6 {[%clk 0:02:31]} 10. Bxf6 {[%clk 0:02:51]}  Qxf6 {[%clk 0:02:31]} 11. O-O {[%clk 0:02:51]}  a6 {[%clk 0:02:26]} 12. Bc4 {[%clk 0:02:46]}  Qd4 {[%clk 0:02:15]} 13. Qxd4 {[%clk 0:02:44]}  cxd4 {[%clk 0:02:15]} 14. Nxe4 {[%clk 0:02:45]}  b5 {[%clk 0:02:14]} 15. Ba2 {[%clk 0:02:44]}  Bb7 {[%clk 0:02:14]} 16. Rad1 {[%clk 0:02:44]}  Bxd5 {[%clk 0:01:45]} 17. Bxd5 {[%clk 0:02:43]}  exd5 {[%clk 0:01:46]} 18. Rxd4 {[%clk 0:02:44]}  Nd7 {[%clk 0:01:33]} 19. Rxd5 {[%clk 0:02:43]}  Nf6 {[%clk 0:01:33]} 20. Nxf6 {[%clk 0:02:43]}  gxf6 {[%clk 0:01:34]} 21. Rfd1 {[%clk 0:02:43]}  Kg7 {[%clk 0:01:34]} 22. g3 {[%clk 0:02:42]}  Rhe8 {[%clk 0:01:34]} 23. c3 {[%clk 0:02:42]}  Re2 {[%clk 0:01:31]} 24. R5d2 {[%clk 0:02:42]}  Re6 {[%clk 0:01:31]} 25. b3 {[%clk 0:02:41]}  Rc8 {[%clk 0:01:30]} 26. Rc1 {[%clk 0:02:41]}  a5 {[%clk 0:01:26]} 27. c4 {[%clk 0:02:40]}  a4 {[%clk 0:01:24]} 28. bxa4 {[%clk 0:02:32]}  bxc4 {[%clk 0:01:22]} 29. Rdc2 {[%clk 0:02:33]}  Rec6 {[%clk 0:01:21]} 30. a5 {[%clk 0:02:33]}  f5 {[%clk 0:01:10]} 31. Kg2 {[%clk 0:02:30]}  f4 {[%clk 0:01:09]} 32. gxf4 {[%clk 0:02:26]}  Kf6 {[%clk 0:01:08]} 33. Kf3 {[%clk 0:02:26]}  Ke6 {[%clk 0:00:59]} 34. Re1+ {[%clk 0:02:23]}  Kf6 {[%clk 0:00:59]} 35. Re5 {[%clk 0:02:23]}  Rb8 {[%clk 0:00:58]} 36. h4 {[%clk 0:02:19]}  Rb3+ {[%clk 0:00:57]} 37. Re3 {[%clk 0:02:20]}  Rb5 {[%clk 0:00:41]} 38. Kg4 {[%clk 0:02:16]}  Rxa5 {[%clk 0:00:39]} 39. h5 {[%clk 0:02:16]}  Rcc5 {[%clk 0:00:29]} 40. Rcc3 {[%clk 0:02:14]}  Ra8 {[%clk 0:00:24]} 41. Re4 {[%clk 0:02:12]}  Rg8+ {[%clk 0:00:22]} 42. Kf3 {[%clk 0:02:07]}  Ra8 {[%clk 0:00:19]} 43. Rexc4 {[%clk 0:02:06]}  Rxc4 {[%clk 0:00:19]} 44. Rxc4 {[%clk 0:02:07]}  Rxa3+ {[%clk 0:00:19]} 45. Kg4 {[%clk 0:02:07]}  Ra6 {[%clk 0:00:19]} 46. Rc8 {[%clk 0:02:05]}  Kg7 {[%clk 0:00:19]} 47. f3 {[%clk 0:02:05]}  Rb6 {[%clk 0:00:20]} 48. Rc5 {[%clk 0:02:04]}  Ra6 {[%clk 0:00:20]} 49. Kf5 {[%clk 0:02:04]}  Rb6 {[%clk 0:00:20]} 50. Ke5 {[%clk 0:02:04]}  Ra6 {[%clk 0:00:20]} 51. f5 {[%clk 0:02:04]}  Rb6 {[%clk 0:00:20]} 52. Rc4 {[%clk 0:02:02]}  Rb5+ {[%clk 0:00:20]} 53. Kf4 {[%clk 0:02:02]}  Rb6 {[%clk 0:00:20]} 54. Rd4 {[%clk 0:02:02]}  Ra6 {[%clk 0:00:20]} 55. Ke5 {[%clk 0:02:01]}  Rb6 {[%clk 0:00:20]} 56. f6+ {[%clk 0:01:59]}  Kh7 {[%clk 0:00:18]} 57. Rg4 {[%clk 0:01:59]}  Rb7 {[%clk 0:00:13]} 58. Kf5 {[%clk 0:01:55]}  Ra7 {[%clk 0:00:13]} 59. Re4 {[%clk 0:01:55]}  Ra5+ {[%clk 0:00:13]} 60. Re5 {[%clk 0:01:55]}  Ra6 {[%clk 0:00:11]} 61. Re7 {[%clk 0:01:55]}  Kg8 {[%clk 0:00:12]} 62. f4 {[%clk 0:01:53]}  Rb6 {[%clk 0:00:11]} 63. Re1 {[%clk 0:01:48]}  Rb5+ {[%clk 0:00:11]} 64. Re5 {[%clk 0:01:47]}  Rb6 {[%clk 0:00:11]} 65. Ra5 {[%clk 0:01:48]}  Rc6 {[%clk 0:00:11]} 66. Ra8+ {[%clk 0:01:47]}  Kh7 {[%clk 0:00:11]} 67. Ra7 {[%clk 0:01:48]}  Kg8 {[%clk 0:00:11]} 68. Ra3 {[%clk 0:01:49]}  Rb6 {[%clk 0:00:10]} 69. Rg3+ {[%clk 0:01:48]}  Kh8 {[%clk 0:00:10]} 70. Ke5 {[%clk 0:01:44]}  Rc6 {[%clk 0:00:09]} 71. Rd3 {[%clk 0:01:42]}  Rc5+ {[%clk 0:00:08]} 72. Rd5 {[%clk 0:01:42]}  Rc6 {[%clk 0:00:08]} 73. Rd6 {[%clk 0:01:41]}  Rc5+ {[%clk 0:00:06]} 74. Ke4 {[%clk 0:01:41]}  Rxh5 {[%clk 0:00:06]} 75. f5 {[%clk 0:01:41]}  Rh1 {[%clk 0:00:05]} 76. Rd8+ {[%clk 0:01:42]}  Kh7 {[%clk 0:00:05]} 77. Rf8 {[%clk 0:01:42]}  Re1+ {[%clk 0:00:05]} 78. Kd4 {[%clk 0:01:43]}  Rd1+ {[%clk 0:00:04]} 79. Ke3 {[%clk 0:01:43]}  Rd7 {[%clk 0:00:05]} 80. Re8 {[%clk 0:01:41]}  Rd6 {[%clk 0:00:04]} 81. Kf4 {[%clk 0:01:41]}  Rxf6 {[%clk 0:00:04]} 82. Re7 {[%clk 0:01:41]}  Kg7 {[%clk 0:00:03]} 83. Re2 {[%clk 0:01:41]}  Ra6 {[%clk 0:00:03]} 84. Rh2 {[%clk 0:01:41]}  Ra4+ {[%clk 0:00:03]} 85. Ke5 {[%clk 0:01:42]}  Ra5+ {[%clk 0:00:03]} 86. Kf4 {[%clk 0:01:42]}  Ra4+ {[%clk 0:00:04]} 87. Ke5 {[%clk 0:01:43]}  Ra5+ {[%clk 0:00:04]} 88. Ke4 {[%clk 0:01:44]}  Ra4+ {[%clk 0:00:03]} 89. Ke5 {[%clk 0:01:44]} 1/2-1/2


[Site "https://www.chess.com"]

[Event "Titled Tuesday Blitz March 21 Late 2023"]
[White "Indjic, Aleksandar"]
[Black "Cyfka, Karina"]
[WhiteFideId "911925"]
[BlackFideId "1122681"]
[WhiteElo "2614"]
[BlackElo "2241"]
[Result "1-0"]
[Round "01"]
[TimeControl "180+2"]
[Date "2023.03.21"]
[WhiteClock "0:00:50"]
[BlackClock "0:00:15"]

1. d4 {[%clk 0:02:58]}  Nf6 {[%clk 0:02:57]} 2. c4 {[%clk 0:02:57]}  e6 {[%clk 0:02:57]} 3. Nc3 {[%clk 0:02:57]}  Bb4 {[%clk 0:02:56]} 4. e3 {[%clk 0:02:57]}  O-O {[%clk 0:02:54]} 5. Bd3 {[%clk 0:02:58]}  c5 {[%clk 0:02:52]} 6. a3 {[%clk 0:02:56]}  Bxc3+ {[%clk 0:02:50]} 7. bxc3 {[%clk 0:02:57]}  Nc6 {[%clk 0:02:46]} 8. Ne2 {[%clk 0:02:53]}  d6 {[%clk 0:02:46]} 9. e4 {[%clk 0:02:52]}  e5 {[%clk 0:02:45]} 10. d5 {[%clk 0:02:51]}  Ne7 {[%clk 0:02:45]} 11. O-O {[%clk 0:02:39]}  Ne8 {[%clk 0:02:44]} 12. f4 {[%clk 0:02:38]}  exf4 {[%clk 0:02:39]} 13. Nxf4 {[%clk 0:02:36]}  Ng6 {[%clk 0:02:31]} 14. Nxg6 {[%clk 0:02:32]}  hxg6 {[%clk 0:02:32]} 15. Bf4 {[%clk 0:02:29]}  f5 {[%clk 0:01:54]} 16. e5 {[%clk 0:02:20]}  g5 {[%clk 0:01:54]} 17. Bg3 {[%clk 0:02:18]}  f4 {[%clk 0:01:49]} 18. Qh5 {[%clk 0:02:17]}  Bf5 {[%clk 0:01:49]} 19. Bxf5 {[%clk 0:02:10]}  Rxf5 {[%clk 0:01:49]} 20. e6 {[%clk 0:02:10]}  Qf6 {[%clk 0:01:45]} 21. Qg4 {[%clk 0:02:02]}  g6 {[%clk 0:01:45]} 22. Bf2 {[%clk 0:02:01]}  Ng7 {[%clk 0:01:40]} 23. Rfe1 {[%clk 0:01:56]}  Re8 {[%clk 0:01:33]} 24. Rac1 {[%clk 0:01:50]}  Re5 {[%clk 0:01:29]} 25. Rxe5 {[%clk 0:01:47]}  Qxe5 {[%clk 0:01:29]} 26. h3 {[%clk 0:01:38]}  Nh5 {[%clk 0:01:20]} 27. h4 {[%clk 0:01:29]}  Qf5 {[%clk 0:01:19]} 28. Qxg5 {[%clk 0:01:25]}  Qxg5 {[%clk 0:01:16]} 29. hxg5 {[%clk 0:01:26]}  Ng7 {[%clk 0:01:07]} 30. Re1 {[%clk 0:01:25]}  Rf8 {[%clk 0:00:54]} 31. Re4 {[%clk 0:01:25]}  Ne8 {[%clk 0:00:47]} 32. Bh4 {[%clk 0:01:19]}  Rf5 {[%clk 0:00:44]} 33. Kf2 {[%clk 0:01:19]}  Ng7 {[%clk 0:00:36]} 34. Kf3 {[%clk 0:01:18]}  Kf8 {[%clk 0:00:33]} 35. a4 {[%clk 0:01:11]}  Ke7 {[%clk 0:00:32]} 36. a5 {[%clk 0:01:00]}  Rf8 {[%clk 0:00:32]} 37. Re1 {[%clk 0:01:00]}  Nf5 {[%clk 0:00:30]} 38. Bf2 {[%clk 0:01:00]}  Rb8 {[%clk 0:00:27]} 39. Rh1 {[%clk 0:00:59]}  Rg8 {[%clk 0:00:19]} 40. Kxf4 {[%clk 0:00:57]}  Kd8 {[%clk 0:00:18]} 41. Ke4 {[%clk 0:00:55]}  b6 {[%clk 0:00:18]} 42. g4 {[%clk 0:00:55]}  Ne7 {[%clk 0:00:17]} 43. Bg3 {[%clk 0:00:55]}  Kc7 {[%clk 0:00:16]} 44. Rh7 {[%clk 0:00:53]}  Re8 {[%clk 0:00:16]} 45. a6 {[%clk 0:00:53]}  b5 {[%clk 0:00:16]} 46. cxb5 {[%clk 0:00:53]}  Kb6 {[%clk 0:00:16]} 47. c4 {[%clk 0:00:53]}  Ka5 {[%clk 0:00:16]} 48. Bxd6 {[%clk 0:00:53]}  Nc8 {[%clk 0:00:16]} 49. Bxc5 {[%clk 0:00:53]}  Ka4 {[%clk 0:00:16]} 50. Rh3 {[%clk 0:00:50]}  Nb6 {[%clk 0:00:15]} 51. Ra3# {[%clk 0:00:50]} 1-0


[Site "https://www.chess.com"]

[Event "Titled Tuesday Blitz March 21 Late 2023"]
[White "Koutlas, Nikolaos"]
[Black "Sjugirov, Sanan"]
[WhiteFideId "25827138"]
[BlackFideId "4189302"]
[WhiteElo "2215"]
[BlackElo "2569"]
[Result "0-1"]
[Round "01"]
[TimeControl "180+2"]
[Date "2023.03.21"]
[WhiteClock "0:00:06"]
[BlackClock "0:01:05"]

1. c4 {[%clk 0:03:00]}  Nf6 {[%clk 0:02:51]} 2. Nc3 {[%clk 0:02:58]}  e5 {[%clk 0:02:49]} 3. g3 {[%clk 0:02:57]}  Bb4 {[%clk 0:02:48]} 4. Bg2 {[%clk 0:02:57]}  O-O {[%clk 0:02:48]} 5. Nf3 {[%clk 0:02:53]}  Bxc3 {[%clk 0:02:45]} 6. dxc3 {[%clk 0:02:51]}  d6 {[%clk 0:02:45]} 7. c5 {[%clk 0:02:41]}  e4 {[%clk 0:02:40]} 8. Nd2 {[%clk 0:02:31]}  d5 {[%clk 0:02:37]} 9. O-O {[%clk 0:02:29]}  a5 {[%clk 0:02:27]} 10. c4 {[%clk 0:02:26]}  Be6 {[%clk 0:02:20]} 11. cxd5 {[%clk 0:02:22]}  Bxd5 {[%clk 0:02:21]} 12. Nb3 {[%clk 0:02:13]}  h6 {[%clk 0:02:04]} 13. h3 {[%clk 0:02:00]}  Nc6 {[%clk 0:02:03]} 14. Be3 {[%clk 0:01:59]}  Qe7 {[%clk 0:01:58]} 15. Nd4 {[%clk 0:01:53]}  Rfd8 {[%clk 0:01:55]} 16. Nxc6 {[%clk 0:01:45]}  Bxc6 {[%clk 0:01:55]} 17. Qb3 {[%clk 0:01:40]}  Nd5 {[%clk 0:01:49]} 18. Rfd1 {[%clk 0:01:30]}  a4 {[%clk 0:01:45]} 19. Qa3 {[%clk 0:01:28]}  Nxe3 {[%clk 0:01:39]} 20. Qxe3 {[%clk 0:01:27]}  Qe5 {[%clk 0:01:39]} 21. Qc3 {[%clk 0:00:43]}  Qxc3 {[%clk 0:01:38]} 22. bxc3 {[%clk 0:00:44]}  f5 {[%clk 0:01:37]} 23. Rd4 {[%clk 0:00:32]}  a3 {[%clk 0:01:29]} 24. e3 {[%clk 0:00:20]}  Rd5 {[%clk 0:01:25]} 25. Bf1 {[%clk 0:00:10]}  Rxc5 {[%clk 0:01:24]} 26. Rc4 {[%clk 0:00:10]}  Raa5 {[%clk 0:01:20]} 27. Rd1 {[%clk 0:00:09]}  Kf7 {[%clk 0:01:18]} 28. Be2 {[%clk 0:00:07]}  Ke7 {[%clk 0:01:17]} 29. Kf1 {[%clk 0:00:07]}  Rxc4 {[%clk 0:01:15]} 30. Bxc4 {[%clk 0:00:07]}  Rc5 {[%clk 0:01:16]} 31. Bb3 {[%clk 0:00:06]}  Rxc3 {[%clk 0:01:16]} 32. Rd4 {[%clk 0:00:05]}  Bb5+ {[%clk 0:01:11]} 33. Ke1 {[%clk 0:00:05]}  c5 {[%clk 0:01:10]} 34. Rd5 {[%clk 0:00:05]}  b6 {[%clk 0:01:06]} 35. Rxf5 {[%clk 0:00:05]}  Rxb3 {[%clk 0:01:05]} 36. axb3 {[%clk 0:00:06]}  a2 {[%clk 0:01:05]} 0-1


[Site "https://www.chess.com"]